[Event "Schack-SM 2022: Sverigemastarklassen"]
[Site "Fyrishov, Idrottsgatan 2, Uppsala, Sweden"]
[Date "2022.07.05"]
[Round "4.5"]
[White "Hillarp, Tiger"]
[Black "Blomqvist, Erik"]
[Result "0-1"]
[TimeControl "90 minutes for 40 moves + 30 minutes for the rest of the game + 30 seconds per move from move one."]
[WhiteTitle "GM"]
[BlackTitle "GM"]
[WhiteFideId "1700812"]
[BlackFideId "1709437"]
[WhiteElo "2516"]
[BlackElo "2521"]

1. d4 {[%clk 01:30:54]} {[%emt 00:00:05]} d5 {[%clk 01:30:49]} {[%emt
00:00:11]} 2. c4 {[%clk 01:30:55]} {[%emt 00:00:30]} dxc4 {[%clk 01:30:43]}
{[%emt 00:00:35]} 3. Nf3 {[%clk 01:30:45]} {[%emt 00:00:40]} Nf6 {[%clk
01:31:00]} {[%emt 00:00:13]} 4. e3 {[%clk 01:31:05]} {[%emt 00:00:10]} e6
{[%clk 01:31:15]} {[%emt 00:00:15]} 5. Bxc4 {[%clk 01:31:26]} {[%emt 00:00:09]}
c5 {[%clk 01:31:40]} {[%emt 00:00:05]} 6. O-O {[%clk 01:29:13]} {[%emt
00:02:44]} a6 {[%clk 01:31:18]} {[%emt 00:00:51]} 7. dxc5 {[%clk 01:22:10]}
{[%emt 00:07:33]} Bxc5 {[%clk 01:31:24]} {[%emt 00:00:25]} 8. Qxd8+ {[%clk
01:22:30]} {[%emt 00:00:10]} Kxd8 {[%clk 01:31:50]} {[%emt 00:00:03]} 9. Nbd2
{[%clk 01:21:43]} {[%emt 00:01:16]} Ke7 {[%clk 01:31:44]} {[%emt 00:00:36]} 10.
Be2 {[%clk 01:21:54]} {[%emt 00:00:20]} Bd7 {[%clk 01:27:39]} {[%emt 00:04:35]}
11. Rd1 {[%clk 01:06:47]} {[%emt 00:15:36]} Bb5 {[%clk 01:20:27]} {[%emt
00:07:42]} 12. Bxb5 {[%clk 01:05:58]} {[%emt 00:01:21]} axb5 {[%clk 01:20:33]}
{[%emt 00:00:24]} 13. Nb3 {[%clk 01:06:09]} {[%emt 00:00:19]} Bd6 {[%clk
00:50:54]} {[%emt 00:30:08]} 14. Nfd4 {[%clk 00:47:20]} {[%emt 00:19:19]} Rd8
{[%clk 00:44:41]} {[%emt 00:06:42]} 15. Bd2 {[%clk 00:47:22]} {[%emt 00:00:29]}
b4 {[%clk 00:44:53]} {[%emt 00:00:19]} 16. Rdc1 {[%clk 00:38:26]} {[%emt
00:09:24]} Kf8 {[%clk 00:40:46]} {[%emt 00:04:38]} 17. Rc4 {[%clk 00:24:02]}
{[%emt 00:14:54]} Nd5 {[%clk 00:40:36]} {[%emt 00:00:40]} 18. e4 {[%clk
00:23:41]} {[%emt 00:00:51]} Nb6 {[%clk 00:40:48]} {[%emt 00:00:18]} 19. Rc2
{[%clk 00:22:59]} {[%emt 00:01:11]} Rc8 {[%clk 00:39:07]} {[%emt 00:02:12]} 20.
Rxc8+ {[%clk 00:15:44]} {[%emt 00:07:46]} Nxc8 {[%clk 00:39:34]} {[%emt
00:00:02]} 21. Rc1 {[%clk 00:15:46]} {[%emt 00:00:28]} Nb6 {[%clk 00:38:02]}
{[%emt 00:02:03]} 22. Nb5 {[%clk 00:09:31]} {[%emt 00:06:44]} Be7 {[%clk
00:38:24]} {[%emt 00:00:08]} 23. Rc7 {[%clk 00:06:23]} {[%emt 00:03:38]} Rxa2
{[%clk 00:37:21]} {[%emt 00:01:33]} 24. Rxb7 {[%clk 00:05:55]} {[%emt
00:00:58]} N8d7 {[%clk 00:37:33]} {[%emt 00:00:19]} 25. Bc1 {[%clk 00:06:15]}
{[%emt 00:00:09]} Ke8 {[%clk 00:33:07]} {[%emt 00:04:57]} 26. Kf1 {[%clk
00:04:55]} {[%emt 00:01:48]} Nc4 {[%clk 00:28:38]} {[%emt 00:05:00]} 27. Ra7
{[%clk 00:04:19]} {[%emt 00:01:06]} Rxa7 {[%clk 00:28:45]} {[%emt 00:00:23]} 28.
Nxa7 {[%clk 00:04:42]} {[%emt 00:00:07]} Nc5 {[%clk 00:24:32]} {[%emt
00:04:44]} 29. Nd4 {[%clk 00:03:37]} {[%emt 00:01:34]} Nd3 {[%clk 00:18:32]}
{[%emt 00:06:31]} 30. Nb3 {[%clk 00:03:53]} {[%emt 00:00:14]} Kd7 {[%clk
00:18:29]} {[%emt 00:00:32]} 31. Nb5 {[%clk 00:02:53]} {[%emt 00:01:30]} e5
{[%clk 00:15:57]} {[%emt 00:03:02]} 32. Ke2 {[%clk 00:03:15]} {[%emt 00:00:08]}
Nxc1+ {[%clk 00:15:48]} {[%emt 00:00:39]} 33. Nxc1 {[%clk 00:03:38]} {[%emt
00:00:07]} Kc6 {[%clk 00:14:47]} {[%emt 00:01:31]} 34. Na7+ {[%clk 00:03:54]}
{[%emt 00:00:14]} Kb7 {[%clk 00:15:13]} {[%emt 00:00:04]} 0-1

[Event "Schack-SM 2022: Sverigemastarklassen"]
[Site "Fyrishov, Idrottsgatan 2, Uppsala, Sweden"]
[Date "2022.07.05"]
[Round "4.1"]
[White "Cramling, Pia"]
[Black "Carlsson, Ludvig"]
[Result "1-0"]
[TimeControl "90 minutes for 40 moves + 30 minutes for the rest of the game + 30 seconds per move from move one."]
[WhiteTitle "GM"]
[BlackTitle "IM"]
[WhiteFideId "1700030"]
[BlackFideId "1727010"]
[WhiteElo "2459"]
[BlackElo "2399"]

1. d4 {[%clk 01:29:01]} {[%emt 00:01:58]} d5 {[%clk 01:30:45]} {[%emt
00:00:15]} 2. c4 {[%clk 01:29:14]} {[%emt 00:00:17]} e6 {[%clk 01:30:57]}
{[%emt 00:00:18]} 3. Nf3 {[%clk 01:29:20]} {[%emt 00:00:23]} c6 {[%clk
01:30:53]} {[%emt 00:00:35]} 4. Qc2 {[%clk 01:29:05]} {[%emt 00:00:45]} dxc4
{[%clk 01:31:00]} {[%emt 00:00:23]} 5. Qxc4 {[%clk 01:27:37]} {[%emt 00:01:59]}
Nf6 {[%clk 01:30:49]} {[%emt 00:00:40]} 6. g3 {[%clk 01:22:24]} {[%emt
00:05:43]} b5 {[%clk 01:30:35]} {[%emt 00:00:42]} 7. Qc2 {[%clk 01:18:22]}
{[%emt 00:04:34]} Bb7 {[%clk 01:30:43]} {[%emt 00:00:22]} 8. Bg2 {[%clk
01:18:41]} {[%emt 00:00:11]} Nbd7 {[%clk 01:30:32]} {[%emt 00:00:40]} 9. Ne5
{[%clk 01:14:42]} {[%emt 00:04:30]} Nxe5 {[%clk 01:29:04]} {[%emt 00:01:59]} 10.
dxe5 {[%clk 01:15:08]} {[%emt 00:00:03]} Nd7 {[%clk 01:29:19]} {[%emt
00:00:15]} 11. O-O {[%clk 01:08:59]} {[%emt 00:06:39]} Be7 {[%clk 01:15:31]}
{[%emt 00:14:17]} 12. Nc3 {[%clk 00:59:26]} {[%emt 00:10:04]} Qb8 {[%clk
01:11:25]} {[%emt 00:04:37]} 13. Rd1 {[%clk 00:51:32]} {[%emt 00:08:23]} Nxe5
{[%clk 00:59:18]} {[%emt 00:12:37]} 14. Ne4 {[%clk 00:48:45]} {[%emt 00:03:17]}
Nd7 {[%clk 00:54:54]} {[%emt 00:04:54]} 15. Be3 {[%clk 00:30:14]} {[%emt
00:19:02]} Qc7 {[%clk 00:50:46]} {[%emt 00:04:38]} 16. Bc5 {[%clk 00:27:47]}
{[%emt 00:02:56]} Nxc5 {[%clk 00:47:23]} {[%emt 00:03:53]} 17. Nxc5 {[%clk
00:28:13]} {[%emt 00:00:05]} Bc8 {[%clk 00:47:45]} {[%emt 00:00:08]} 18. Nxe6
{[%clk 00:21:49]} {[%emt 00:06:53]} 1-0

[Event "Schack-SM 2022: Sverigemastarklassen"]
[Site "Fyrishov, Idrottsgatan 2, Uppsala, Sweden"]
[Date "2022.07.05"]
[Round "4.2"]
[White "Hector, Jonny"]
[Black "Smith, Axel"]
[Result "1-0"]
[TimeControl "90 minutes for 40 moves + 30 minutes for the rest of the game + 30 seconds per move from move one."]
[WhiteTitle "GM"]
[BlackTitle "GM"]
[WhiteFideId "1700090"]
[BlackFideId "1707930"]
[WhiteElo "2441"]
[BlackElo "2417"]

1. e4 {[%clk 01:30:49]} {[%emt 00:00:08]} e5 {[%clk 01:30:50]} {[%emt
00:00:13]} 2. Nf3 {[%clk 01:31:05]} {[%emt 00:00:13]} Nf6 {[%clk 01:31:16]}
{[%emt 00:00:04]} 3. Nxe5 {[%clk 01:31:05]} {[%emt 00:00:30]} d6 {[%clk
01:31:42]} {[%emt 00:00:06]} 4. Nf3 {[%clk 01:31:18]} {[%emt 00:00:15]} Nxe4
{[%clk 01:32:09]} {[%emt 00:00:04]} 5. d4 {[%clk 01:31:29]} {[%emt 00:00:19]}
d5 {[%clk 01:32:36]} {[%emt 00:00:04]} 6. Bd3 {[%clk 01:31:15]} {[%emt
00:00:42]} Bd6 {[%clk 01:32:52]} {[%emt 00:00:15]} 7. O-O {[%clk 01:30:48]}
{[%emt 00:00:56]} O-O {[%clk 01:33:18]} {[%emt 00:00:05]} 8. c4 {[%clk
01:29:53]} {[%emt 00:01:25]} c6 {[%clk 01:33:46]} {[%emt 00:00:03]} 9. Nc3
{[%clk 01:29:26]} {[%emt 00:00:56]} Nxc3 {[%clk 01:32:35]} {[%emt 00:01:42]} 10.
bxc3 {[%clk 01:29:51]} {[%emt 00:00:04]} dxc4 {[%clk 01:32:49]} {[%emt
00:00:17]} 11. Bxc4 {[%clk 01:30:14]} {[%emt 00:00:05]} Bf5 {[%clk 01:33:01]}
{[%emt 00:00:20]} 12. Ne5 {[%clk 01:23:59]} {[%emt 00:06:45]} Nd7 {[%clk
01:30:31]} {[%emt 00:03:00]} 13. Qf3 {[%clk 01:23:47]} {[%emt 00:00:41]} Qf6
{[%clk 01:25:03]} {[%emt 00:05:59]} 14. Nxd7 {[%clk 01:23:44]} {[%emt
00:00:33]} Bxd7 {[%clk 01:25:20]} {[%emt 00:00:13]} 15. Qxf6 {[%clk 01:23:53]}
{[%emt 00:00:20]} gxf6 {[%clk 01:25:47]} {[%emt 00:00:03]} 16. Bh6 {[%clk
01:20:37]} {[%emt 00:03:44]} Rfe8 {[%clk 01:25:32]} {[%emt 00:00:47]} 17. Rfd1
{[%clk 01:18:26]} {[%emt 00:02:41]} Re4 {[%clk 01:11:57]} {[%emt 00:14:06]} 18.
Bd2 {[%clk 01:06:28]} {[%emt 00:12:27]} b5 {[%clk 01:00:08]} {[%emt 00:12:19]}
19. Bd3 {[%clk 01:04:53]} {[%emt 00:02:04]} Ree8 {[%clk 01:00:20]} {[%emt
00:00:20]} 20. a4 {[%clk 01:02:18]} {[%emt 00:03:04]} a5 {[%clk 00:54:30]}
{[%emt 00:06:21]} 21. c4 {[%clk 00:54:36]} {[%emt 00:08:11]} bxc4 {[%clk
00:36:24]} {[%emt 00:18:37]} 22. Bxc4 {[%clk 00:54:41]} {[%emt 00:00:24]} Bb4
{[%clk 00:36:48]} {[%emt 00:00:07]} 23. Be3 {[%clk 00:41:44]} {[%emt 00:13:26]}
Rac8 {[%clk 00:35:17]} {[%emt 00:02:02]} 24. Kf1 {[%clk 00:34:35]} {[%emt
00:07:38]} Bf5 {[%clk 00:28:21]} {[%emt 00:07:26]} 25. Ke2 {[%clk 00:20:21]}
{[%emt 00:14:43]} Re7 {[%clk 00:17:41]} {[%emt 00:11:12]} 26. Rdc1 {[%clk
00:18:56]} {[%emt 00:01:54]} Be4 {[%clk 00:15:52]} {[%emt 00:02:19]} 27. Bd3
{[%clk 00:16:49]} {[%emt 00:02:37]} Bd5 {[%clk 00:15:49]} {[%emt 00:00:34]} 28.
Bf5 {[%clk 00:15:11]} {[%emt 00:02:07]} Rb8 {[%clk 00:14:26]} {[%emt 00:01:54]}
29. Rc2 {[%clk 00:11:40]} {[%emt 00:04:00]} Bd6 {[%clk 00:13:44]} {[%emt
00:01:12]} 30. h4 {[%clk 00:06:53]} {[%emt 00:05:17]} Rb3 {[%clk 00:09:40]}
{[%emt 00:04:35]} 31. Kf1 {[%clk 00:06:23]} {[%emt 00:00:59]} Reb7 {[%clk
00:09:46]} {[%emt 00:00:25]} 32. Bd2 {[%clk 00:04:10]} {[%emt 00:02:42]} Bb4
{[%clk 00:06:59]} {[%emt 00:03:18]} 33. Be3 {[%clk 00:02:05]} {[%emt 00:02:34]}
Bd6 {[%clk 00:06:28]} {[%emt 00:01:01]} 34. h5 {[%clk 00:02:13]} {[%emt
00:00:22]} Rb1+ {[%clk 00:06:16]} {[%emt 00:00:42]} 35. Rxb1 {[%clk 00:01:55]}
{[%emt 00:00:48]} Rxb1+ {[%clk 00:06:45]} {[%emt 00:00:02]} 36. Ke2 {[%clk
00:02:17]} {[%emt 00:00:07]} Ra1 {[%clk 00:03:06]} {[%emt 00:04:10]} 37. Bd7
{[%clk 00:02:24]} {[%emt 00:00:22]} Rxa4 {[%clk 00:01:57]} {[%emt 00:01:40]} 38.
Bxc6 {[%clk 00:02:29]} {[%emt 00:00:24]} Ra2 {[%clk 00:02:20]} {[%emt
00:00:07]} 39. Rxa2 {[%clk 00:02:34]} {[%emt 00:00:25]} Bxa2 {[%clk 00:01:46]}
{[%emt 00:01:05]} 40. Ba4 {[%clk 00:01:41]} {[%emt 00:01:22]} Bc4+ {[%clk
00:00:41]} {[%emt 00:01:35]} 41. Kd1 {[%clk 00:01:30]} {[%emt 00:00:41]} f5
{[%clk 00:26:51]} {[%emt 00:04:20]} 42. h6 {[%clk 00:20:32]} {[%emt 00:11:27]}
f4 {[%clk 00:18:14]} {[%emt 00:09:08]} 43. Bd2 {[%clk 00:20:57]} {[%emt
00:00:05]} Bd5 {[%clk 00:18:12]} {[%emt 00:00:32]} 44. f3 {[%clk 00:18:16]}
{[%emt 00:03:10]} Bc4 {[%clk 00:18:04]} {[%emt 00:00:39]} 45. Bxa5 {[%clk
00:16:42]} {[%emt 00:02:03]} f5 {[%clk 00:08:13]} {[%emt 00:10:23]} 46. Bd7
{[%clk 00:15:43]} {[%emt 00:01:28]} Bd3 {[%clk 00:04:48]} {[%emt 00:03:55]} 47.
Kd2 {[%clk 00:15:45]} {[%emt 00:00:28]} Bf1 {[%clk 00:03:48]} {[%emt 00:01:31]}
48. Be6+ {[%clk 00:14:37]} {[%emt 00:01:38]} Kf8 {[%clk 00:04:07]} {[%emt
00:00:11]} 49. Bxf5 {[%clk 00:15:00]} {[%emt 00:00:06]} Kf7 {[%clk 00:03:33]}
{[%emt 00:01:04]} 50. Ke1 {[%clk 00:07:33]} {[%emt 00:07:56]} Kf6 {[%clk
00:01:11]} {[%emt 00:02:54]} 51. Bxh7 {[%clk 00:07:08]} {[%emt 00:00:54]} Bxg2
{[%clk 00:01:38]} {[%emt 00:00:04]} 52. Bd8+ {[%clk 00:06:50]} {[%emt
00:00:47]} Kf7 {[%clk 00:00:33]} {[%emt 00:01:35]} 53. Be4 {[%clk 00:05:40]}
{[%emt 00:01:39]} Bf8 {[%clk 00:00:38]} {[%emt 00:00:26]} 54. Bg5 {[%clk
00:05:59]} {[%emt 00:00:10]} Bh3 {[%clk 00:00:31]} {[%emt 00:00:37]} 55. Bxf4
{[%clk 00:06:15]} {[%emt 00:00:14]} 1-0

[Event "Schack-SM 2022: Sverigemastarklassen"]
[Site "Fyrishov, Idrottsgatan 2, Uppsala, Sweden"]
[Date "2022.07.04"]
[Round "3.1"]
[White "Hillarp, Tiger"]
[Black "Cramling, Pia"]
[Result "1-0"]
[TimeControl "90 minutes for 40 moves + 30 minutes for the rest of the game + 30 seconds per move from move one."]
[WhiteTitle "GM"]
[BlackTitle "GM"]
[WhiteFideId "1700812"]
[BlackFideId "1700030"]
[WhiteElo "2516"]
[BlackElo "2459"]

1. d4 {[%clk 01:30:55]} {[%emt 00:00:04]} Nf6 {[%clk 01:30:33]} {[%emt
00:00:26]} 2. c4 {[%clk 01:31:18]} {[%emt 00:00:08]} e6 {[%clk 01:30:55]}
{[%emt 00:00:09]} 3. Nc3 {[%clk 01:31:41]} {[%emt 00:00:06]} Bb4 {[%clk
01:31:17]} {[%emt 00:00:06]} 4. Qc2 {[%clk 01:32:06]} {[%emt 00:00:06]} O-O
{[%clk 01:31:26]} {[%emt 00:00:22]} 5. a3 {[%clk 01:32:29]} {[%emt 00:00:07]}
Bxc3+ {[%clk 01:31:20]} {[%emt 00:00:35]} 6. Qxc3 {[%clk 01:32:52]} {[%emt
00:00:08]} b6 {[%clk 01:31:05]} {[%emt 00:00:45]} 7. Bg5 {[%clk 01:33:13]}
{[%emt 00:00:08]} Bb7 {[%clk 01:31:15]} {[%emt 00:00:21]} 8. e3 {[%clk
01:31:16]} {[%emt 00:02:28]} d6 {[%clk 01:28:59]} {[%emt 00:02:45]} 9. Ne2
{[%clk 01:31:13]} {[%emt 00:00:33]} Nbd7 {[%clk 01:24:58]} {[%emt 00:04:32]} 10.
Rd1 {[%clk 01:31:24]} {[%emt 00:00:18]} h6 {[%clk 01:19:40]} {[%emt 00:05:48]}
11. Bh4 {[%clk 01:31:39]} {[%emt 00:00:14]} Ne4 {[%clk 01:01:03]} {[%emt
00:19:08]} 12. Bxd8 {[%clk 01:29:18]} {[%emt 00:02:51]} Nxc3 {[%clk 01:01:30]}
{[%emt 00:00:03]} 13. Nxc3 {[%clk 01:29:36]} {[%emt 00:00:12]} Rfxd8 {[%clk
01:01:51]} {[%emt 00:00:08]} 14. f3 {[%clk 01:28:56]} {[%emt 00:01:11]} c5
{[%clk 00:59:11]} {[%emt 00:03:10]} 15. Kf2 {[%clk 01:25:40]} {[%emt 00:03:46]}
Nf6 {[%clk 00:51:00]} {[%emt 00:08:41]} 16. d5 {[%clk 01:24:15]} {[%emt
00:01:54]} exd5 {[%clk 00:41:52]} {[%emt 00:09:39]} 17. cxd5 {[%clk 01:22:40]}
{[%emt 00:02:05]} a6 {[%clk 00:42:15]} {[%emt 00:00:07]} 18. a4 {[%clk
01:23:02]} {[%emt 00:00:07]} Bc8 {[%clk 00:37:20]} {[%emt 00:05:25]} 19. e4
{[%clk 01:08:39]} {[%emt 00:14:53]} Bd7 {[%clk 00:33:44]} {[%emt 00:04:06]} 20.
Rb1 {[%clk 01:03:41]} {[%emt 00:05:29]} Rdb8 {[%clk 00:31:59]} {[%emt
00:02:15]} 21. b4 {[%clk 00:54:05]} {[%emt 00:10:06]} b5 {[%clk 00:19:19]}
{[%emt 00:13:10]} 22. bxc5 {[%clk 00:44:51]} {[%emt 00:09:44]} b4 {[%clk
00:19:32]} {[%emt 00:00:16]} 23. Nd1 {[%clk 00:45:12]} {[%emt 00:00:10]} Bxa4
{[%clk 00:17:40]} {[%emt 00:02:22]} 24. cxd6 {[%clk 00:41:22]} {[%emt
00:04:20]} Bc2 {[%clk 00:16:41]} {[%emt 00:01:28]} 25. Ra1 {[%clk 00:41:37]}
{[%emt 00:00:16]} a5 {[%clk 00:16:14]} {[%emt 00:00:57]} 26. Ne3 {[%clk
00:41:48]} {[%emt 00:00:19]} Bxe4 {[%clk 00:14:57]} {[%emt 00:01:46]} 27. fxe4
{[%clk 00:42:08]} {[%emt 00:00:11]} Nxe4+ {[%clk 00:15:19]} {[%emt 00:00:09]}
28. Kf3 {[%clk 00:42:21]} {[%emt 00:00:16]} Nxd6 {[%clk 00:15:06]} {[%emt
00:00:44]} 29. Nc4 {[%clk 00:42:10]} {[%emt 00:00:40]} Nxc4 {[%clk 00:13:36]}
{[%emt 00:02:01]} 30. Bxc4 {[%clk 00:42:32]} {[%emt 00:00:08]} Rc8 {[%clk
00:12:43]} {[%emt 00:01:22]} 31. Bb5 {[%clk 00:41:03]} {[%emt 00:01:58]} Rc3+
{[%clk 00:11:50]} {[%emt 00:01:23]} 32. Ke4 {[%clk 00:39:43]} {[%emt 00:01:51]}
b3 {[%clk 00:09:17]} {[%emt 00:03:03]} 33. Rhb1 {[%clk 00:31:48]} {[%emt
00:08:26]} Kf8 {[%clk 00:09:22]} {[%emt 00:00:24]} 34. Kd4 {[%clk 00:31:00]}
{[%emt 00:01:16]} Rc2 {[%clk 00:09:47]} {[%emt 00:00:06]} 35. Rxb3 {[%clk
00:31:00]} {[%emt 00:00:31]} Rxg2 {[%clk 00:10:07]} {[%emt 00:00:10]} 36. Bc6
{[%clk 00:28:08]} {[%emt 00:03:21]} Rd8 {[%clk 00:10:27]} {[%emt 00:00:10]} 37.
h3 {[%clk 00:21:42]} {[%emt 00:06:56]} g5 {[%clk 00:09:33]} {[%emt 00:01:24]}
38. Rxa5 {[%clk 00:21:16]} {[%emt 00:00:57]} h5 {[%clk 00:09:54]} {[%emt
00:00:08]} 39. Raa3 {[%clk 00:13:13]} {[%emt 00:08:33]} h4 {[%clk 00:03:00]}
{[%emt 00:07:24]} 40. Kc5 {[%clk 00:11:35]} {[%emt 00:02:09]} Kg7 {[%clk
00:01:27]} {[%emt 00:02:03]} 41. Kb6 {[%clk 00:10:06]} {[%emt 00:01:59]} 1-0

[Event "Schack-SM 2022: Sverigemastarklassen"]
[Site "Fyrishov, Idrottsgatan 2, Uppsala, Sweden"]
[Date "2022.07.04"]
[Round "3.2"]
[White "Jogstad, Martin"]
[Black "Hector, Jonny"]
[Result "0-1"]
[TimeControl "90 minutes for 40 moves + 30 minutes for the rest of the game + 30 seconds per move from move one."]
[WhiteTitle "FM"]
[BlackTitle "GM"]
[WhiteFideId "1715364"]
[BlackFideId "1700090"]
[WhiteElo "2384"]
[BlackElo "2441"]

1. d4 {[%clk 01:30:49]} {[%emt 00:00:09]} d5 {[%clk 01:30:55]} {[%emt
00:00:07]} 2. Nf3 {[%clk 01:31:10]} {[%emt 00:00:10]} Nf6 {[%clk 01:31:12]}
{[%emt 00:00:12]} 3. c4 {[%clk 01:31:27]} {[%emt 00:00:13]} c6 {[%clk
01:31:26]} {[%emt 00:00:16]} 4. cxd5 {[%clk 01:31:50]} {[%emt 00:00:07]} cxd5
{[%clk 01:31:47]} {[%emt 00:00:09]} 5. Nc3 {[%clk 01:32:09]} {[%emt 00:00:10]}
Nc6 {[%clk 01:31:58]} {[%emt 00:00:20]} 6. Bf4 {[%clk 01:32:22]} {[%emt
00:00:17]} Bf5 {[%clk 01:32:09]} {[%emt 00:00:18]} 7. e3 {[%clk 01:32:41]}
{[%emt 00:00:12]} e6 {[%clk 01:32:35]} {[%emt 00:00:04]} 8. Qb3 {[%clk
01:32:56]} {[%emt 00:00:15]} Bb4 {[%clk 01:30:09]} {[%emt 00:02:56]} 9. Ne5
{[%clk 01:33:06]} {[%emt 00:00:20]} Bxc3+ {[%clk 01:23:20]} {[%emt 00:07:19]}
10. bxc3 {[%clk 01:33:18]} {[%emt 00:00:17]} Nxe5 {[%clk 01:19:51]} {[%emt
00:04:00]} 11. Bxe5 {[%clk 01:33:43]} {[%emt 00:00:05]} O-O {[%clk 01:18:51]}
{[%emt 00:01:30]} 12. f3 {[%clk 01:27:21]} {[%emt 00:06:51]} Qa5 {[%clk
01:04:41]} {[%emt 00:14:41]} 13. Be2 {[%clk 00:58:57]} {[%emt 00:28:54]} Rfc8
{[%clk 01:03:41]} {[%emt 00:01:30]} 14. Rc1 {[%clk 00:55:45]} {[%emt 00:03:41]}
Nd7 {[%clk 00:54:21]} {[%emt 00:09:51]} 15. Bd6 {[%clk 00:54:02]} {[%emt
00:02:12]} Nb6 {[%clk 00:48:58]} {[%emt 00:05:54]} 16. Bb4 {[%clk 00:48:36]}
{[%emt 00:05:56]} Qa4 {[%clk 00:49:07]} {[%emt 00:00:20]} 17. Bc5 {[%clk
00:41:10]} {[%emt 00:07:57]} Qc6 {[%clk 00:43:50]} {[%emt 00:05:47]} 18. Bb5
{[%clk 00:37:00]} {[%emt 00:04:40]} Qc7 {[%clk 00:43:58]} {[%emt 00:00:22]} 19.
O-O {[%clk 00:28:36]} {[%emt 00:08:54]} Nc4 {[%clk 00:38:17]} {[%emt 00:06:11]}
20. Bxc4 {[%clk 00:28:58]} {[%emt 00:00:09]} dxc4 {[%clk 00:38:35]} {[%emt
00:00:10]} 21. Qa3 {[%clk 00:29:21]} {[%emt 00:00:08]} Bd3 {[%clk 00:38:02]}
{[%emt 00:01:02]} 22. Rf2 {[%clk 00:29:25]} {[%emt 00:00:27]} Rd8 {[%clk
00:35:10]} {[%emt 00:03:22]} 23. e4 {[%clk 00:26:35]} {[%emt 00:03:21]} f6
{[%clk 00:32:36]} {[%emt 00:03:04]} 24. Qb2 {[%clk 00:25:27]} {[%emt 00:01:38]}
b6 {[%clk 00:25:58]} {[%emt 00:07:08]} 25. Ba3 {[%clk 00:25:41]} {[%emt
00:00:16]} Rab8 {[%clk 00:24:52]} {[%emt 00:01:36]} 26. Re1 {[%clk 00:21:32]}
{[%emt 00:04:39]} e5 {[%clk 00:22:50]} {[%emt 00:02:32]} 27. d5 {[%clk
00:14:26]} {[%emt 00:07:36]} b5 {[%clk 00:22:43]} {[%emt 00:00:37]} 28. Qc1
{[%clk 00:14:16]} {[%emt 00:00:40]} a5 {[%clk 00:22:29]} {[%emt 00:00:43]} 29.
Bb2 {[%clk 00:12:56]} {[%emt 00:01:48]} b4 {[%clk 00:18:26]} {[%emt 00:04:35]}
30. Qe3 {[%clk 00:11:40]} {[%emt 00:01:47]} f5 {[%clk 00:12:06]} {[%emt
00:06:49]} 31. exf5 {[%clk 00:11:24]} {[%emt 00:00:47]} Rxd5 {[%clk 00:12:22]}
{[%emt 00:00:14]} 32. cxb4 {[%clk 00:10:35]} {[%emt 00:01:20]} c3 {[%clk
00:11:40]} {[%emt 00:01:12]} 33. Bc1 {[%clk 00:09:04]} {[%emt 00:02:00]} axb4
{[%clk 00:10:06]} {[%emt 00:02:04]} 34. Qg5 {[%clk 00:07:16]} {[%emt 00:02:19]}
Qd8 {[%clk 00:05:25]} {[%emt 00:05:09]} 35. Qh5 {[%clk 00:07:42]} {[%emt
00:00:04]} Bc4 {[%clk 00:04:31]} {[%emt 00:01:24]} 36. Bg5 {[%clk 00:07:45]}
{[%emt 00:00:29]} Rd1 {[%clk 00:03:40]} {[%emt 00:01:20]} 37. Rfe2 {[%clk
00:05:02]} {[%emt 00:03:13]} Qd3 {[%clk 00:03:03]} {[%emt 00:01:07]} 38. Kf2
{[%clk 00:04:51]} {[%emt 00:00:41]} Rd2 {[%clk 00:03:18]} 39. Rxd2 {[%clk
00:03:19]} {[%emt 00:02:17]} cxd2 {[%clk 00:03:32]} {[%emt 00:00:15]} 40. Rd1
{[%clk 00:01:03]} {[%emt 00:02:47]} Qe2+ {[%clk 00:03:44]} {[%emt 00:00:17]} 41.
Kg3 {[%clk 00:01:30]} {[%emt 00:00:05]} Qxd1 {[%clk 00:03:53]} {[%emt
00:00:20]} 42. Bd8 {[%clk 00:01:03]} {[%emt 00:00:57]} Rxd8 {[%clk 00:02:32]}
{[%emt 00:01:51]} 0-1